bitfinex-derivatives/quotes_ETHF0:USTF0_20250626
["timestamp","ask_amount","ask_price","bid_price","bid_amount"]
[1750978196932,0.7301,2416.5,2416.1,6.518]
[1750978197225,2.95942,2416.5,2416.4,0.82733]
[1750978198724,0.7301,2416.5,2416.4,0.82733]
[1750978199224,0.6644,2416.6,2416.5,0.82729]
[1750978200219,0.7364,2416.8,2416.7,0.82722]
[1750978200424,1.4392,2416.8,2416.7,0.82722]
[1750978203432,2.26639,2416.8,2416.7,0.82722]
[1750978203633,0.82724,2416.7,2416.6,6.526]
[1750978203832,4.03504,2416.7,2416.6,6.526]
[1750978204225,8.18485789,2416.7,2416.6,6.526]
[1750978204429,8.18485789,2416.7,2416.1,33.01795967]
[1750978204430,0.82726,2416.6,2416.5,6.526]
[1750978204729,0.82736,2416.3,2416.2,7.35338]
[1750978205232,0.82735,2416.4,2416.3,0.82736]
[1750978205425,2.26372,2416.5,2416.4,0.82733]
[1750978206534,0.82733,2416.4,2416.3,6.526]
[1750978206728,1.52243,2416.4,2416.3,6.526]
[1750978209838,1.52243,2416.4,2416.3,7.35336]
[1750978214238,1.52243,2416.4,2416.3,0.82736]
[1750978214440,4.73023,2416.4,2416.3,6.526]
[1750978214636,7.44364789,2416.4,2416.3,6.526]
[1750978215041,4.73023,2416.4,2416.3,6.526]
[1750978215940,5.68579815,2416.4,2416.3,6.526]
[1750978223056,5.68579815,2416.4,2416.3,7.35336]
[1750978223260,5.68579815,2416.4,2416.3,6.526]
[1750978233568,0.95556815,2416.4,2416.3,7.35336]
[1750978233968,0.95556815,2416.4,2416.3,8.06646]
[1750978234769,0.95556815,2416.4,2416.3,9.49696]
[1750978234970,1.78289815,2416.4,2416.3,9.49696]
[1750978235164,1.78289815,2416.4,2416.3,8.6696]
[1750978236072,0.95556815,2416.4,2416.3,9.49696]
[1750978236771,1.78289815,2416.4,2416.3,9.49696]
[1750978236971,0.95556815,2416.4,2416.3,9.49696]
[1750978237269,1.78289815,2416.4,2416.3,9.49696]
[1750978239073,0.95556815,2416.4,2416.3,9.49696]
[1750978243576,1.78289815,2416.4,2416.3,9.49696]
[1750978243978,1.78289815,2416.4,2416.3,8.06646]
[1750978244576,0.95556815,2416.4,2416.3,8.06646]
[1750978245177,0.95556815,2416.4,2416.3,9.47676]
[1750978245675,1.49895,2416.7,2416.6,0.82726]
[1750978245676,0.82725,2416.7,2416.6,0.82726]
[1750978245977,0.95969653,2416.7,2416.6,0.82726]
[1750978246173,1.78691653,2416.7,2416.6,0.82726]
[1750978246370,0.95969653,2416.7,2416.6,0.82726]
[1750978246872,1.78691653,2416.7,2416.6,0.82726]
[1750978247275,0.95969653,2416.7,2416.6,0.82726]
[1750978247477,0.95969653,2416.7,2416.6,3.54067789]
[1750978248077,0.95969653,2416.7,2416.6,4.27577789]
[1750978248880,0.95969653,2416.7,2416.6,10.79477789]
[1750978251079,5.68146743,2417.0,2416.9,0.82715]
[1750978251285,0.9585182,2417.0,2416.9,7.34615]
[1750978251680,5.68146743,2417.4,2417.3,0.82702]
[1750978252379,3.2078,2417.4,2417.3,1.50832]
[1750978252581,3.2078,2417.4,2417.3,4.74961789]
[1750978252883,3.2078,2417.4,2417.3,5.57663789]
[1750978253579,3.30056743,2417.7,2417.5,0.82694]
[1750978253580,4.0347,2417.7,2417.5,0.82694]
[1750978253780,3.2078,2417.7,2417.6,0.82691]
[1750978254681,0.7246,2417.9,2417.8,0.82685]
[1750978254878,1.55142,2417.9,2417.7,0.82686]
[1750978255480,0.7246,2417.9,2417.8,0.82685]
[1750978258783,0.7246,2417.9,2417.8,7.34485]
[1750978259083,3.9203,2418.3,2418.2,0.82671]
[1750978259285,0.7125,2418.3,2418.2,0.82671]
[1750978259976,0.7146,2418.4,2418.3,0.82668]
[1750978261192,3.2078,2418.6,2418.3,2.71341789]
[1750978261382,3.2078,2418.6,2418.4,6.513]
[1750978261784,3.2078,2418.6,2418.5,0.82661]
[1750978262387,4.70405032,2419.3,2418.5,81.2914]
[1750978262388,2.46441699,2419.3,2418.5,81.2914]
[1750978262590,3.14311699,2419.5,2419.3,0.82632]
[1750978262791,3.14311699,2419.5,2419.3,0.82633]
[1750978263091,0.6787,2419.5,2419.3,0.82632]
[1750978263484,1.50497,2419.5,2419.2,10.05276789]
[1750978263688,0.94175974,2419.4,2419.2,10.05276789]
[1750978263887,2.95197,2419.5,2419.2,10.05276789]
[1750978264089,2.1257,2419.5,2419.3,0.82633]
[1750978264290,2.95197,2419.5,2419.3,0.82633]
[1750978264694,2.95197,2419.5,2419.2,9.22641789]
[1750978264695,2.95197,2419.5,2419.2,10.05276789]
[1750978264898,5.3335,2419.5,2419.2,6.513]
[1750978265194,0.82633,2419.3,2419.2,6.512]
[1750978265600,2.27333,2419.3,2419.2,6.512]
[1750978266493,0.82637,2419.2,2419.1,9.7188]
[1750978266694,2.22157,2419.2,2419.1,9.7188]
[1750978267609,2.22157,2419.2,2419.1,10.5452]
[1750978267815,2.22157,2419.2,2419.1,9.7188]
[1750978268806,2.22157,2419.2,2418.7,41.13033912]
[1750978268807,4.603,2419.2,2418.7,40.8]
[1750978269003,4.03429,2418.9,2418.8,6.511]
[1750978269505,0.709,2419.1,2418.8,9.22441789]
[1750978269705,2.1221,2419.4,2419.0,3.53983789]
[1750978269911,2.8311,2419.4,2419.1,6.51]
[1750978270108,0.82633,2419.3,2419.1,7.33639]
[1750978270302,1.3867,2419.2,2419.1,7.33639]
[1750978270506,2.21307,2419.2,2419.1,6.51]
[1750978270710,2.21307,2419.2,2419.1,7.3364]
[1750978271217,2.21307,2419.2,2419.1,6.51]
[1750978271610,2.21307,2419.2,2419.1,7.3364]
[1750978271811,1.4444,2419.4,2419.3,0.82633]
[1750978272115,0.7354,2419.4,2419.3,0.82633]
[1750978272810,1.5617,2419.4,2419.2,3.53975789]
[1750978273008,0.82633,2419.3,2419.1,6.51]
[1750978273207,2.0891,2419.4,2419.1,6.51]
[1750978273403,2.91542,2419.4,2419.1,7.33638]
[1750978273715,0.82634,2419.3,2419.1,7.33638]
[1750978273913,0.82637,2419.2,2419.1,6.51]
[1750978274507,2.85506,2419.3,2419.1,7.3364]
[1750978275310,0.82637,2419.2,2419.1,6.51]
[1750978275510,2.18007,2419.2,2419.1,6.51]
[1750978275710,2.18007,2419.2,2419.1,7.3364]
[1750978275916,1.3537,2419.2,2419.1,7.3364]
[1750978276314,5.38787,2419.2,2419.1,6.509]
[1750978276518,0.8265,2418.8,2418.7,3.2078]
[1750978276710,0.8265,2418.8,2418.7,9.7168]
[1750978277514,2.27399,2418.9,2418.7,9.7168]
[1750978277712,1.4475,2418.9,2418.8,0.8265]
[1750978278012,2.27398,2418.9,2418.7,9.7168]
[1750978278217,2.27398,2418.9,2418.7,10.54332]
[1750978278413,1.4475,2418.9,2418.8,0.8265]
[1750978278623,3.2078,2419.2,2418.8,2.71341789]
[1750978278920,3.2078,2419.2,2419.1,3.53981789]
[1750978279119,3.2078,2419.2,2419.1,10.04881789]
[1750978280221,0.675,2419.3,2419.2,0.82637]
[1750978284523,4.03394,2419.9,2419.7,0.82617]
[1750978284823,1.49399,2419.8,2419.6,0.82622]
[1750978285014,2.85399,2419.8,2419.6,0.82622]
[1750978285420,2.85399,2419.8,2419.5,6.508]
[1750978285421,2.85399,2419.8,2419.5,7.33425]
[1750978285622,2.85398,2419.8,2419.6,0.82623]
[1750978286018,2.0278,2419.8,2419.6,0.82623]
[1750978286224,2.0278,2419.8,2419.7,0.8262]
[1750978287127,2.85396,2419.8,2419.7,0.8262]
[1750978288426,2.0278,2419.8,2419.7,0.8262]
[1750978289430,0.6678,2419.8,2419.7,0.8262]
[1750978289831,1.49396,2419.8,2419.6,0.82621]
[1750978290529,0.95228064,2419.7,2419.6,0.82621]
[1750978292725,3.2078,2419.9,2419.8,0.82616]
[1750978292925,4.1609994,2419.9,2419.8,0.82616]
[1750978293732,4.9871394,2419.9,2419.7,0.82618]
[1750978293931,0.9531994,2419.8,2419.7,0.82618]
[1750978295932,1.7793794,2419.8,2419.6,7.34221]
[1750978296227,0.9531994,2419.7,2419.6,7.34221]
[1750978296431,1.7793994,2419.7,2419.6,6.516]
[1750978296631,1.7793994,2419.7,2419.6,7.34223]
[1750978296632,3.7959994,2419.7,2419.6,7.34223]
[1750978296833,2.3541994,2419.7,2419.6,7.34223]
[1750978297235,0.9531994,2419.7,2419.6,7.34223]
[1750978302333,0.9531994,2419.7,2419.3,3.2078]
[1750978302534,2.71341789,2419.4,2419.0,3.2078]
[1750978302735,5.27377,2419.2,2418.8,6.515]
[1750978302925,4.03427,2418.9,2418.8,6.515]
[1750978303834,4.582,2418.9,2418.8,7.3415]
[1750978304440,5.40847,2418.9,2418.8,6.515]
[1750978305340,1.3742,2418.9,2418.8,7.3415]
[1750978307737,2.20067,2418.9,2418.8,7.3415]
[1750978307937,1.3742,2418.9,2418.8,7.3415]
[1750978308439,2.20067,2418.9,2418.8,6.515]
[1750978308739,3.15392256,2418.9,2418.8,6.515]
[1750978308938,2.32745256,2418.9,2418.8,6.515]
[1750978309141,1.3742,2418.9,2418.8,6.515]
[1750978309341,2.20067,2418.9,2418.8,6.515]
[1750978310330,2.20067,2418.9,2418.8,7.3415]
[1750978311744,1.3742,2418.9,2418.8,7.3415]
[1750978312245,0.6754,2419.0,2418.9,0.82647]
[1750978312437,1.62897255,2419.0,2418.9,0.82647]
[1750978314245,1.62897255,2419.0,2418.8,7.34148]
[1750978314246,2.45541255,2419.0,2418.8,7.34148]
[1750978314448,1.50184,2419.0,2418.8,7.34148]
[1750978314748,2.96194,2419.0,2418.9,0.82647]
[1750978315345,2.1355,2419.0,2418.9,0.82647]
[1750978317649,0.6754,2419.0,2418.9,0.82647]
[1750978317950,1.55462,2419.1,2419.0,0.82644]
[1750978318246,1.6810419,2419.1,2419.0,0.82644]
[1750978320050,2.5074419,2419.1,2419.0,0.82644]
[1750978320250,3.9509419,2419.1,2419.0,0.82644]
[1750978320643,3.1245419,2419.1,2419.0,0.82644]
[1750978321949,3.9509419,2419.1,2418.9,0.82644]
[1750978322153,2.1717,2419.1,2418.9,0.82647]
[1750978322346,1.4117,2419.0,2418.9,0.82647]
[1750978326458,2.23814,2419.0,2418.9,0.82647]
[1750978327059,1.4117,2419.0,2418.9,0.82647]
[1750978327458,2.3605937,2419.0,2418.9,0.82647]
[1750978329561,0.82649,2418.9,2418.7,0.82652]
[1750978329763,0.82649,2418.9,2418.8,6.533]
[1750978331362,1.77633954,2418.9,2418.8,7.3595]
[1750978332670,1.77633954,2418.9,2418.8,6.533]
[1750978332870,1.77633954,2418.9,2418.8,7.3595]
[1750978338071,1.77633954,2418.9,2418.8,0.8265]
[1750978338279,2.06627,2418.8,2418.4,2.47558967]
[1750978338573,0.82671,2418.2,2418.0,0.82675]
[1750978339076,0.82666,2418.4,2418.2,3.54009789]
[1750978339277,0.82663,2418.5,2418.3,0.82668]
[1750978339577,0.82667,2418.4,2418.2,3.54010789]
[1750978339777,0.82667,2418.4,2418.2,4.26610789]
[1750978340480,0.82659,2418.6,2418.3,0.82668]
[1750978340777,0.97325462,2418.5,2418.3,0.82668]
[1750978340972,0.82658,2418.6,2418.3,7.8663]
[1750978341173,0.97326084,2418.5,2418.4,0.82662]
[1750978341373,1.79987084,2418.5,2418.3,8.69296]
[1750978341681,0.82664,2418.4,2418.3,6.533]
[1750978342379,1.79979189,2418.4,2418.3,6.533]
[1750978344681,1.79979189,2418.4,2418.2,1.5527]
[1750978344880,0.82664,2418.4,2418.3,6.533]
[1750978345276,1.79913144,2418.4,2418.3,6.533]
[1750978346876,1.79913144,2418.4,2418.2,0.8267]
[1750978347078,1.69429144,2418.3,2418.2,7.36071]
[1750978347877,0.97249144,2418.3,2418.2,7.36071]
[1750978348384,0.97249144,2418.3,2417.8,0.6716]
[1750978348585,3.9443,2418.5,2417.8,0.6716]
[1750978348586,0.82677,2418.1,2417.9,6.534]
[1750978348884,0.82678,2418.0,2417.9,6.534]
[1750978349086,0.7365,2418.1,2417.9,7.36081]
[1750978350383,0.7365,2418.1,2418.0,0.82678]
[1750978350583,1.56324,2418.1,2417.9,7.36079]
[1750978350778,1.56324,2418.1,2418.0,0.82678]
[1750978351184,1.56324,2418.1,2417.9,7.36079]
[1750978353579,3.2078,2418.5,2417.9,31.768]
[1750978353784,2.46441699,2419.2,2419.1,2.71341789]
[1750978354086,0.9794763,2419.2,2419.0,3.2078]
[1750978354378,0.9794763,2419.1,2419.0,3.2078]
[1750978354580,2.46441699,2419.3,2419.0,3.2078]
[1750978354581,2.46441699,2419.3,2419.1,0.8264]
[1750978355474,2.46441699,2419.3,2419.0,4.03422]
[1750978355686,2.46441699,2419.3,2419.1,0.8264]
[1750978356390,3.44389329,2419.2,2419.1,0.8264]
[1750978356790,2.46441699,2419.2,2419.1,0.8264]
[1750978357486,3.44389329,2419.3,2419.1,0.8264]
[1750978357688,0.9794763,2419.2,2419.1,0.8264]
[1750978357995,3.44445187,2419.3,2419.2,0.82637]
[1750978358189,3.44445185,2419.3,2419.2,0.82637]
[1750978358488,0.98003486,2419.3,2419.2,0.82637]
[1750978360185,0.98003486,2419.3,2419.2,1.15119976]
[1750978360491,0.98003486,2419.3,2419.2,0.82637]
[1750978360791,0.98003486,2419.3,2419.1,2.71341789]
[1750978361093,0.98003486,2419.2,2419.1,3.53981789]
[1750978363797,0.98003486,2419.2,2419.1,5.01401789]
[1750978364398,2.19701,2419.4,2419.1,5.01401789]
[1750978364601,0.97810396,2419.3,2419.2,0.82637]
[1750978365293,0.97810396,2419.3,2419.1,5.01399789]
[1750978365494,2.19701,2419.4,2419.1,5.01399789]
[1750978365694,0.97799424,2419.3,2419.1,5.01399789]
[1750978365891,0.82633,2419.3,2419.1,5.01399789]
[1750978366490,2.19702,2419.4,2419.2,0.82636]
[1750978366686,0.97789184,2419.3,2419.1,4.18761789]
[1750978366900,2.19701,2419.4,2419.2,0.82637]
[1750978367088,0.9778931,2419.3,2419.1,5.01399789]
[1750978367399,0.82633,2419.3,2419.1,5.01399789]
[1750978368394,2.19702,2419.4,2419.2,0.82637]
[1750978369594,2.19702,2419.4,2419.1,5.01399789]
[1750978369595,0.82633,2419.3,2419.1,5.01399789]
[1750978369991,0.82633,2419.3,2419.1,3.53979789]
[1750978370293,0.8264,2419.1,2419.0,3.2078]
[1750978370596,0.82654,2418.8,2418.7,3.2078]
[1750978371599,2.29564,2418.8,2418.7,3.2078]
[1750978373497,2.29564,2418.8,2418.3,9.23141789]
[1750978373498,0.82655,2418.7,2418.5,0.82658]
[1750978374393,1.4691,2418.8,2418.4,3.2078]
[1750978374595,0.82659,2418.6,2418.4,4.03443]
[1750978375696,0.82661,2418.5,2418.4,4.03443]
[1750978375899,1.4691,2418.8,2418.4,3.2078]
[1750978376303,0.82661,2418.5,2418.4,3.2078]
[1750978376993,0.82671,2418.2,2418.0,6.50433037]
[1750978377197,8.2078,2418.5,2418.0,3.2078]
[1750978377198,0.82674,2418.1,2418.0,3.2078]
[1750978381008,0.82678,2418.0,2417.9,3.54022789]
[1750978381605,11.38744,2418.4,2417.9,3.54022789]
[1750978381606,0.82677,2418.1,2417.9,3.54022789]
[1750978382505,0.82678,2418.0,2417.9,3.54022789]
[1750978383307,0.82678,2418.0,2417.9,5.92121789]
[1750978383509,0.82678,2418.0,2417.9,3.2078]
[1750978384204,1.3582,2418.3,2417.9,3.2078]
[1750978384413,1.3582,2418.3,2417.9,5.92121789]
[1750978384609,0.82677,2418.1,2417.9,6.74801789]
[1750978385012,0.82678,2418.0,2417.9,5.92121789]
[1750978385312,0.82677,2418.1,2417.9,6.74802789]
[1750978386210,0.82678,2418.0,2417.9,5.92121789]
[1750978386714,0.82677,2418.1,2417.9,6.74802789]
[1750978388212,0.82677,2418.1,2418.0,0.82678]
[1750978389307,0.82677,2418.1,2417.9,6.74800789]
[1750978390320,0.82677,2418.1,2418.0,0.82678]
[1750978390802,0.82677,2418.1,2417.9,6.74800789]
[1750978393715,0.82678,2418.0,2417.9,6.74800789]
[1750978393916,0.82678,2418.0,2417.9,5.92121789]
[1750978394313,0.82677,2418.1,2417.9,5.92121789]
[1750978395018,0.82677,2418.1,2417.9,6.74800789]
[1750978395413,0.82678,2418.0,2417.9,6.74800789]
[1750978395619,1.3582,2418.3,2418.0,0.82676]
[1750978395812,0.82672,2418.2,2418.0,0.82676]
[1750978396313,7.9024,2418.4,2418.0,0.82676]
[1750978396518,0.82674,2418.1,2417.9,6.74800789]
[1750978397016,0.82674,2418.1,2418.0,0.82678]
[1750978397611,0.82674,2418.2,2418.0,0.82678]
[1750978398120,7.9024,2418.4,2418.0,0.82675]
[1750978398306,0.82674,2418.1,2418.0,0.82675]
[1750978398711,0.82674,2418.1,2418.0,2.16375]
[1750978399224,0.82674,2418.2,2418.0,2.16375]
[1750978400827,0.82678,2418.0,2417.9,3.2078]
[1750978401327,0.82678,2418.0,2417.9,4.03461]
[1750978401721,0.82678,2418.0,2417.9,3.2078]
[1750978403334,1.81006531,2418.0,2417.9,3.2078]
[1750978412442,0.82695,2417.6,2417.4,6.50453037]
[1750978412635,1.81023531,2417.5,2417.4,5.67756037]
[1750978412841,1.81023531,2417.5,2417.4,6.50454037]
[1750978413238,0.82695,2417.5,2417.4,5.67756037]
[1750978413435,0.82693,2417.6,2417.4,6.50453037]
[1750978413635,0.82693,2417.6,2417.4,9.21794826]
[1750978413841,0.82693,2417.6,2417.4,6.74818789]
[1750978416244,0.82693,2417.6,2417.4,3.54038789]
[1750978416544,0.82691,2417.7,2417.5,0.82695]
[1750978416744,0.98309508,2417.6,2417.5,0.82695]
[1750978416946,1.81002508,2417.6,2417.4,3.54037789]
[1750978417148,0.82693,2417.6,2417.4,3.54037789]
[1750978418243,0.82693,2417.6,2417.5,0.82695]
[1750978418442,1.80971494,2417.6,2417.5,0.82695]
[1750978419645,0.98278494,2417.6,2417.5,0.82695]
[1750978420647,1.80969494,2417.6,2417.5,0.82695]
[1750978421242,0.82691,2417.6,2417.5,0.82695]
[1750978421849,0.82691,2417.6,2417.4,3.54037789]
[1750978422350,0.82695,2417.5,2417.4,3.54037789]
[1750978423349,4.6241,2417.8,2417.4,3.54037789]
[1750978423350,0.82694,2417.6,2417.4,3.54037789]
[1750978423749,0.82695,2417.5,2417.4,3.54037789]
[1750978424049,0.82694,2417.6,2417.4,3.54037789]
[1750978424449,4.6241,2417.8,2417.4,3.54037789]
[1750978424750,0.9826012,2417.7,2417.4,3.54037789]
[1750978425053,4.6241,2417.8,2417.4,3.54037789]
[1750978425251,0.82695,2417.5,2417.4,3.54037789]
[1750978425643,0.82694,2417.6,2417.4,3.54037789]
[1750978426349,0.82695,2417.5,2417.4,3.54037789]
[1750978427051,0.82694,2417.6,2417.4,3.54037789]
[1750978427550,0.82695,2417.5,2417.4,3.54037789]
[1750978429152,0.82695,2417.5,2417.4,2.71341789]
[1750978429352,0.82695,2417.5,2417.4,3.54039789]
[1750978429550,0.82698,2417.4,2417.3,0.7071]
[1750978429852,0.82705,2417.2,2417.1,2.46976037]
[1750978430048,0.82709,2417.1,2416.9,5.67756037]
[1750978430246,0.82712,2417.0,2416.9,6.50470037]
[1750978430549,0.82712,2417.0,2416.9,4.03494]
[1750978430751,0.82711,2417.1,2416.9,4.03494]
[1750978431146,0.82715,2416.9,2416.8,1.56910037]
[1750978431346,2.71341789,2416.6,2416.3,4.11532957]
[1750978431549,4.03513,2416.4,2416.1,4.94273957]
[1750978431744,0.6903,2416.5,2416.3,3.54077789]
[1750978431944,0.6903,2416.5,2416.3,2.71341789]
[1750978431945,1.51759,2416.5,2416.3,2.71341789]
[1750978432143,0.6903,2416.5,2416.3,2.71341789]
[1750978432352,0.6903,2416.5,2416.3,3.54077789]
[1750978432655,0.6903,2416.5,2416.3,4.94587789]
[1750978433753,0.6903,2416.5,2416.4,0.82733]
[1750978434053,4.03504,2416.7,2416.4,0.82733]
[1750978434255,0.8273,2416.5,2416.3,4.11851789]
[1750978434549,4.03513,2416.4,2416.2,1.4261]
[1750978434754,3.2078,2416.4,2416.2,1.4261]
[1750978435054,0.8274,2416.2,2415.9,0.82747]
[1750978435255,3.2078,2416.0,2415.9,0.82747]
[1750978436253,3.2078,2416.0,2415.9,4.99668789]
[1750978446257,2.21406,2416.3,2416.1,0.8274]
[1750978446459,0.82739,2416.2,2416.0,0.82744]
[1750978447059,2.21408,2416.3,2415.9,4.16921789]
[1750978447262,2.21408,2416.3,2416.1,0.82743]
[1750978448158,0.8274,2416.2,2416.0,0.82744]
[1750978448356,1.3867,2416.3,2415.9,4.16921789]
[1750978448555,0.82739,2416.2,2416.0,0.82744]
[1750978449355,5.92121789,2416.1,2415.8,7.2773]
[1750978449561,0.82753,2415.8,2415.7,6.573]
[1750978449954,0.8276,2415.6,2415.4,7.40065]
[1750978450562,2.22448,2415.7,2415.5,0.82763]
[1750978451162,2.22448,2415.7,2415.4,7.40064]
[1750978451359,2.22448,2415.7,2415.5,0.82763]
[1750978452056,1.3969,2415.7,2415.5,0.8276]
[1750978452361,2.22448,2415.7,2415.5,0.8276]
[1750978453466,0.8276,2415.6,2415.5,0.8276]
[1750978453765,0.8276,2415.6,2415.4,6.573]
[1750978453956,3.2078,2415.5,2415.4,7.40067]
[1750978454956,0.82753,2415.8,2415.7,0.82756]
[1750978454957,3.2078,2415.8,2415.7,0.82756]
[1750978456662,3.2078,2415.8,2415.4,9.28641789]
[1750978456862,0.82758,2415.7,2415.5,0.82762]
[1750978457064,3.2078,2415.6,2415.5,0.82762]
[1750978458464,4.03541,2415.6,2415.4,7.40065]
[1750978458763,0.6658,2415.5,2415.4,7.40065]
[1750978459559,0.6658,2415.5,2415.3,0.697]
[1750978459863,1.49345,2415.5,2415.3,0.82769]
[1750978460067,2.94985,2415.5,2415.3,0.82769]
[1750978460366,0.82767,2415.4,2415.2,0.82772]
[1750978461067,2.1222,2415.5,2415.1,7.3037]
[1750978461068,0.8277,2415.3,2415.1,8.13146]
[1750978461268,0.8277,2415.3,2415.1,7.40276]
[1750978461456,4.83561789,2415.5,2415.2,0.82772]
[1750978461765,0.82771,2415.3,2415.1,0.82775]
[1750978461966,1.3301,2415.4,2415.0,6.575]
[1750978462268,2.71341789,2415.1,2414.8,4.12086239]
[1750978462566,3.8843,2415.0,2414.7,9.86801239]
[1750978462768,0.82786,2414.9,2414.7,10.69591239]
[1750978463070,1.3301,2414.9,2414.8,0.82787]
[1750978463270,3.8843,2415.0,2414.9,0.82784]
[1750978463563,3.8843,2415.0,2414.7,6.575]
[1750978463773,0.82793,2414.7,2414.5,3.29301239]
[1750978463967,6.65871789,2414.6,2414.3,3.29301239]
[1750978464166,2.71341789,2414.4,2414.1,3.29301239]
[1750978464468,5.92121789,2414.2,2413.9,3.96351239]
[1750978464668,3.2078,2414.2,2414.1,0.82811]
[1750978464868,3.9453,2414.2,2414.1,3.54152789]
[1750978465170,3.9453,2414.2,2414.1,0.82811]
[1750978465372,3.2078,2414.2,2414.1,0.82811]
[1750978468868,3.2078,2414.2,2414.1,3.54152789]
[1750978469767,0.7375,2414.6,2414.5,0.82798]
[1750978469967,3.2078,2414.7,2414.6,0.82794]
[1750978472874,0.6944,2414.9,2414.8,0.82787]
[1750978473073,3.9022,2414.9,2414.8,0.82787]
[1750978473770,4.90581656,2414.9,2414.8,0.82787]
[1750978477078,4.90581656,2414.9,2414.7,0.82788]
[1750978477377,1.00361656,2414.8,2414.7,0.82788]
[1750978478673,2.71341789,2414.4,2414.2,0.82807]
[1750978478876,3.2078,2414.3,2414.2,0.82808]
[1750978479372,3.2078,2414.3,2414.0,6.583]
[1750978479568,3.2078,2414.3,2414.1,0.8281]
[1750978480381,3.9354,2414.3,2414.1,0.8281]
[1750978480782,4.76345,2414.3,2414.0,8.0387]
[1750978480979,3.9354,2414.3,2414.2,0.82808]
[1750978481279,3.9354,2414.3,2414.1,0.82809]
[1750978481677,3.9354,2414.3,2414.0,6.583]
[1750978481977,0.82811,2414.1,2414.0,6.583]
[1750978482883,0.82811,2414.1,2414.0,7.41115]
[1750978483184,3.54151789,2414.2,2414.0,7.41115]
[1750978483372,0.82811,2414.1,2414.0,7.41115]
[1750978483681,0.82811,2414.1,2414.0,6.583]
[1750978483980,0.82811,2414.1,2414.0,0.82815]
[1750978484178,4.08231789,2414.2,2414.1,0.82811]
[1750978484575,1.3689,2414.2,2414.1,0.82811]
[1750978485280,3.2078,2414.3,2414.2,0.82808]
[1750978487787,3.2078,2414.3,2414.1,1.53029]
[1750978487975,4.03585,2414.3,2414.1,0.7022]
[1750978488486,0.82816,2414.0,2413.7,7.41123]
[1750978488782,3.2078,2413.9,2413.7,8.11343]
[1750978488981,3.2078,2413.9,2413.7,7.2852]
[1750978489184,0.82822,2413.8,2413.7,0.7022]
[1750978489372,2.71341789,2413.5,2413.2,0.82841]
[1750978489574,2.71341789,2413.5,2413.0,5.3614]
[1750978489774,3.2078,2413.6,2413.3,0.82839]
[1750978490378,3.2078,2413.6,2413.0,8.40910146]
[1750978490684,3.2078,2413.6,2413.4,0.82835]
[1750978492178,3.2078,2413.6,2413.5,0.82832]
[1750978493088,0.704,2413.8,2413.6,0.82826]
[1750978493284,1.53222,2413.8,2413.5,0.8283]
[1750978493485,3.2078,2413.6,2413.4,0.82833]
[1750978493787,3.2078,2413.6,2413.4,0.82834]
[1750978494187,3.8902,2413.6,2413.4,0.82834]
[1750978495285,3.8902,2413.6,2413.5,0.82832]
[1750978495591,3.8902,2413.6,2413.4,0.82834]
[1750978496290,4.71849,2413.6,2413.4,0.82834]
[1750978496892,3.8902,2413.6,2413.4,0.82834]
[1750978497490,4.71849,2413.6,2413.4,0.82834]
[1750978497791,3.8902,2413.6,2413.5,0.82832]
[1750978498382,3.2078,2413.6,2413.5,0.82832]
[1750978498887,0.704,2413.8,2413.7,0.82825]
[1750978499192,1.70961104,2413.8,2413.6,0.82826]
[1750978499378,0.704,2413.8,2413.6,0.82826]
[1750978500293,0.704,2413.8,2413.4,2.71341789]
[1750978500490,1.00574031,2413.7,2413.6,0.82827]
[1750978502295,1.00574031,2413.7,2413.6,3.54168789]
[1750978502497,0.7375,2414.1,2413.7,0.82824]
[1750978502796,1.83520025,2414.0,2413.7,1.50024]
[1750978502991,4.21484025,2413.9,2413.7,0.672]
[1750978503195,1.00704025,2413.8,2413.7,1.50023]
[1750978503398,1.00704025,2413.8,2413.7,0.672]
[1750978503603,1.00704025,2413.8,2413.7,1.50025]
[1750978505909,3.2078,2413.9,2413.8,3.54163789]
[1750978506100,1.00707746,2413.9,2413.8,3.54163789]
[1750978506302,1.00707746,2413.9,2413.8,11.57443789]
[1750978506506,1.00707746,2413.9,2413.8,8.86102]
[1750978507313,1.00707746,2413.9,2413.8,6.59]
[1750978507501,4.21487746,2413.9,2413.8,7.41822]
[1750978507703,4.21487746,2413.9,2413.8,0.82822]
[1750978509005,5.04308746,2413.9,2413.7,8.09025]
[1750978509308,3.2078,2413.9,2413.8,0.82822]
[1750978509503,4.21519416,2413.9,2413.8,0.82822]
[1750978511105,4.21519416,2413.9,2413.8,2.20052]
[1750978511511,3.2078,2413.9,2413.8,4.91393789]
[1750978514107,3.2078,2413.9,2413.8,2.20052]
[1750978515512,3.2078,2413.9,2413.8,4.91393789]
[1750978516211,4.21706512,2413.9,2413.8,4.91393789]
[1750978516411,3.2078,2414.2,2414.1,0.82811]
[1750978516606,4.21706361,2414.2,2414.1,0.82811]
[1750978516807,1.00926361,2414.2,2414.1,0.82811]
[1750978517213,1.00926361,2414.2,2414.1,2.94861]
[1750978517820,3.2078,2414.5,2414.4,0.82801]
[1750978518119,4.21746329,2414.5,2414.4,0.82801]
[1750978522115,3.2078,2414.5,2414.4,0.82801]
[1750978527817,0.7276,2414.6,2414.5,0.82798]
[1750978528819,3.2078,2414.7,2414.5,0.82798]
[1750978528820,3.2078,2414.7,2414.6,3.54135789]
[1750978529115,0.7362,2415.0,2414.9,3.54125789]
[1750978529322,0.7362,2415.0,2414.9,7.41584]
[1750978529323,1.74303208,2415.0,2414.9,7.41584]
[1750978531018,0.7362,2415.0,2414.9,7.41584]
[1750978531418,3.9393,2415.1,2415.0,0.8278]
[1750978532723,0.6795,2415.2,2415.1,0.82777]
[1750978532924,3.2078,2415.4,2415.3,0.8277]